fUSD/lending_fUSD_20241219
["ID","MTS","AMOUNT","RATE_DAILY","PERIOD"]
[346000812,1734618655624,-1942.08,0.00022739,4]
[346000813,1734618655634,-640.79,0.00022739,4]
[346000814,1734618655643,-500.0,0.00022739,4]
[346000815,1734618655653,-500.0,0.00022739,4]
[346000816,1734618655662,-617.09,0.00022739,4]
[346000817,1734618655671,-500.0,0.00022739,4]
[346000818,1734618655680,-500.0,0.00022739,4]
[346000819,1734618655690,-500.0,0.00022739,4]
[346000820,1734618655699,-500.0,0.00022739,4]
[346000821,1734618655708,-3701.41,0.00022739,4]
[346000822,1734618655718,-500.0,0.00022739,2]
[346000823,1734618655727,-581.02,0.00022739,4]
[346000824,1734618655736,-500.0,0.00022739,4]
[346000825,1734618655745,-590.95,0.00022739,4]
[346000826,1734618655755,-500.0,0.00022739,4]
[346000827,1734618655764,-500.0,0.00022739,4]
[346000828,1734618655774,-500.0,0.00022739,4]
[346000829,1734618655783,-742.39,0.00022739,4]
[346000830,1734618655792,-500.0,0.00022739,4]
[346000831,1734618655802,-500.0,0.00022739,4]
[346000832,1734618655811,-873.82,0.00022739,4]
[346000833,1734618655820,-500.0,0.00022739,4]
[346000834,1734618655829,-500.56,0.00022739,4]
[346000835,1734618655840,-500.0,0.00022739,4]
[346000836,1734618655849,-500.0,0.00022739,4]
[346000837,1734618655858,-500.0,0.00022739,4]
[346000838,1734618655868,-500.0,0.00022739,4]
[346000839,1734618655877,-1548.53,0.00022739,4]
[346000840,1734618655887,-161.18,0.00022739,4]
[346000841,1734618655896,-500.0,0.00022739,4]
[346000842,1734618655905,-727.98,0.00022739,4]
[346000843,1734618655915,-500.0,0.00022739,4]
[346000844,1734618655924,-500.0,0.00022739,4]
[346000845,1734618655934,-500.0,0.00022739,4]
[346000846,1734618655943,-500.0,0.00022739,4]
[346000847,1734618655952,-500.0,0.00022739,4]
[346000848,1734618655962,-885.56,0.00022739,4]
[346000849,1734618655971,-1819.6,0.00022739,4]
[346000850,1734618655980,-500.0,0.00022739,4]
[346000851,1734618655990,-990.87,0.00022739,4]
[346000852,1734618655999,-496.89,0.00022762,2]
[346000853,1734618656009,-150.0,0.00022764,4]
[346000854,1734618656018,-150.0,0.00022766,2]
[346000855,1734618656027,-150.0,0.00022797,4]
[346000856,1734618656036,-2200.0,0.000228,8]
[346000857,1734618656046,-940.512,0.00022831,2]
[346000858,1734618656059,-150.0,0.00022836,4]
[346000859,1734618656068,-412.84,0.00022848,2]
[346000860,1734618656077,-1423.92,0.000229,2]
[346000861,1734618656087,-501.189,0.000229,2]
[346000862,1734618656098,-1009.14803217,0.000229,7]
[346000863,1734618656108,-3000.0,0.000229,8]
[346000864,1734618656117,-150.0,0.00022908,4]
[346000865,1734618656126,-150.0,0.00022962,2]
[346000866,1734618656136,-150.0,0.0002298,4]
[346000867,1734618656146,-150.0,0.00022986,4]
[346000868,1734618656155,-5792.0,0.00022986,2]
[346000869,1734618656164,-200.0,0.00023,2]
[346000870,1734618656173,-64706.78872646,0.00023012,3]
[346000871,1734618656495,-152614.16670319,0.00023012,3]
[346000872,1734618656505,-226.694226,0.00023013,4]
[346000873,1734618656515,-481.675102,0.00023013,4]
[346000874,1734618656524,-500.0,0.00023013,4]
[346000875,1734618656534,-500.0,0.00023013,4]
[346000876,1734618656544,-500.0,0.00023013,4]
[346000877,1734618656553,-500.0,0.00023013,4]
[346000878,1734618656562,-405.54583724,0.00023013,4]
[346000879,1734618656572,-500.0,0.00023013,4]
[346000880,1734618656581,-582.78663445,0.00023013,4]
[346000881,1734618656593,-500.0,0.00023013,4]
[346000882,1734618656603,-500.0,0.00023013,4]
[346000883,1734618656612,-500.0,0.00023013,4]
[346000884,1734618656621,-500.0,0.00023013,4]
[346000885,1734618656631,-500.0,0.00023013,4]
[346000886,1734618656640,-500.0,0.00023013,4]
[346000887,1734618656650,-500.0,0.00023013,4]
[346000888,1734618656659,-500.0,0.00023013,4]
[346000889,1734618656668,-500.0,0.00023013,4]
[346000890,1734618656678,-500.0,0.00023013,4]
[346000891,1734618656687,-500.0,0.00023013,4]
[346000892,1734618656696,-500.0,0.00023013,4]
[346000893,1734618656705,-427.28110385,0.00023013,4]
[346000894,1734618656714,-500.0,0.00023013,4]
[346000895,1734618656723,-500.0,0.00023013,4]
[346000896,1734618656733,-500.0,0.00023013,4]
[346000897,1734618656742,-500.0,0.00023013,4]
[346000898,1734618656751,-506.68513037,0.00023013,4]
[346000899,1734618656761,-500.0,0.00023013,4]
[346000900,1734618656771,-500.0,0.00023013,4]
[346000901,1734618656781,-500.0,0.00023013,4]
[346000902,1734618656790,-500.0,0.00023013,4]
[346000903,1734618656799,-506.74157485,0.00023013,4]
[346000904,1734618656809,-500.0,0.00023013,4]
[346000905,1734618656818,-500.0,0.00023013,4]
[346000906,1734618656827,-500.0,0.00023013,4]
[346000907,1734618656837,-500.0,0.00023013,4]
[346000908,1734618656847,-500.0,0.00023013,4]
[346000909,1734618656857,-500.0,0.00023013,4]
[346000910,1734618656866,-500.0,0.00023013,4]
[346000911,1734618656875,-500.0,0.00023013,4]
[346000912,1734618656885,-500.0,0.00023013,4]
[346000913,1734618656894,-500.0,0.00023013,4]
[346000914,1734618656904,-500.0,0.00023013,4]
[346000915,1734618656913,-272.73715549,0.00023013,4]
[346000916,1734618656923,-191.8688849,0.00023013,4]
[346000917,1734618656933,-500.0,0.00023013,4]
[346000918,1734618656942,-500.0,0.00023013,4]
[346000919,1734618656951,-500.0,0.00023013,4]
[346000920,1734618656961,-305.37626587,0.00023013,4]
[346000921,1734618656970,-500.0,0.00023013,4]
[346000922,1734618656980,-500.0,0.00023013,4]
[346000923,1734618656990,-500.0,0.00023013,4]
[346000924,1734618656999,-500.0,0.00023013,4]
[346000925,1734618657009,-500.0,0.00023013,4]
[346000926,1734618657018,-500.0,0.00023013,4]
[346000927,1734618657080,-500.0,0.00023013,4]
[346000928,1734618657094,-500.0,0.00023013,4]
[346000929,1734618657105,-500.0,0.00023013,4]
[346000930,1734618657116,-500.0,0.00023013,4]
[346000931,1734618657125,-500.0,0.00023013,4]
[346000932,1734618657136,-500.0,0.00023013,4]
[346000933,1734618657146,-291.06155407,0.00023013,4]
[346000934,1734618657156,-551.52,0.00023013,4]
[346000935,1734618657166,-500.0,0.00023013,4]
[346000936,1734618657175,-500.0,0.00023013,4]
[346000937,1734618657184,-500.0,0.00023013,4]
[346000938,1734618657194,-500.0,0.00023013,4]
[346000939,1734618657203,-500.0,0.00023013,4]
[346000940,1734618657213,-500.0,0.00023013,4]
[346000941,1734618657223,-500.0,0.00023013,4]
[346000942,1734618657232,-500.0,0.00023013,4]
[346000943,1734618657241,-500.0,0.00023013,4]
[346000944,1734618657250,-607.87,0.00023013,4]
[346000945,1734618657260,-500.0,0.00023013,4]
[346000946,1734618657269,-500.0,0.00023013,4]
[346000947,1734618657279,-500.0,0.00023013,4]
[346000948,1734618657288,-500.0,0.00023013,4]
[346000949,1734618657297,-500.0,0.00023013,4]
[346000950,1734618657307,-500.0,0.00023013,4]
[346000951,1734618657316,-536.54,0.00023013,4]
[346000952,1734618657327,-500.0,0.00023013,4]
[346000953,1734618657336,-587.88,0.00023013,4]
[346000954,1734618657348,-500.0,0.00023013,4]
[346000955,1734618657357,-500.0,0.00023013,4]
[346000956,1734618657366,-562.66,0.00023013,4]
[346000957,1734618657375,-562.83,0.00023013,4]
[346000958,1734618657385,-500.0,0.00023013,4]
[346000959,1734618657394,-500.0,0.00023013,4]
[346000960,1734618657403,-500.0,0.00023013,4]
[346000961,1734618657411,-500.0,0.00023013,4]
[346000962,1734618657421,-500.0,0.00023013,4]
[346000963,1734618657432,-247.56836661,0.00023013,4]
[346000964,1734618657442,-500.0,0.00023013,4]
[346000965,1734618657452,-500.0,0.00023013,4]
[346000966,1734618657461,-500.0,0.00023013,2]
[346000967,1734618657470,-500.0,0.00023013,4]
[346000968,1734618657479,-586.08230078,0.00023013,4]
[346000969,1734618657489,-500.0,0.00023013,4]
[346000970,1734618657498,-167.37,0.00023013,4]
[346000971,1734618657507,-507.3901067,0.00023013,4]
[346000972,1734618657516,-500.0,0.00023013,4]
[346000973,1734618657526,-500.0,0.00023013,4]
[346000974,1734618657535,-500.0,0.00023013,4]
[346000975,1734618657544,-500.0,0.00023013,4]
[346000976,1734618657553,-500.0,0.00023013,4]
[346000977,1734618657562,-500.0,0.00023013,4]
[346000978,1734618657571,-575.22,0.00023013,4]
[346000979,1734618657580,-689.88,0.00023013,4]
[346000980,1734618657592,-500.0,0.00023013,4]
[346000981,1734618657601,-500.0,0.00023013,4]
[346000982,1734618657611,-539.88,0.00023013,4]
[346000983,1734618657621,-984.6,0.00023013,4]
[346000984,1734618657631,-256.12045271,0.00023013,4]
[346000985,1734618657640,-500.0,0.00023013,4]
[346000986,1734618657650,-500.0,0.00023013,4]
[346000987,1734618657659,-512.1,0.00023013,4]
[346000988,1734618657668,-500.0,0.00023013,4]
[346000989,1734618657678,-500.0,0.00023013,4]
[346000990,1734618657688,-500.0,0.00023013,4]
[346000991,1734618657697,-500.0,0.00023013,4]
[346000992,1734618657707,-500.0,0.00023013,4]
[346000993,1734618657716,-500.0,0.00023013,2]
[346000994,1734618657726,-500.0,0.00023013,4]
[346000995,1734618657736,-500.0,0.00023013,4]
[346000996,1734618657745,-500.0,0.00023013,4]
[346000997,1734618657755,-500.0,0.00023013,4]
[346000998,1734618657764,-500.0,0.00023013,4]
[346000999,1734618657774,-500.0,0.00023013,4]
[346001000,1734618657784,-500.0,0.00023013,4]
[346001001,1734618657795,-500.0,0.00023013,4]
[346001002,1734618657805,-500.0,0.00023013,4]
[346001003,1734618657817,-500.0,0.00023013,4]
[346001004,1734618657828,-373.32057606,0.00023013,4]
[346001005,1734618657838,-500.0,0.00023013,4]
[346001006,1734618657856,-500.0,0.00023013,4]
[346001007,1734618657867,-500.0,0.00023013,4]
[346001008,1734618657878,-500.0,0.00023013,4]
[346001009,1734618657890,-500.0,0.00023013,4]
[346001010,1734618657901,-500.0,0.00023013,4]
[346001011,1734618657911,-500.0,0.00023013,4]
[346001012,1734618657922,-500.0,0.00023013,4]
[346001013,1734618657933,-500.0,0.00023013,4]
[346001014,1734618657943,-500.0,0.00023013,4]
[346001015,1734618657953,-500.0,0.00023013,4]
[346001016,1734618657963,-500.0,0.00023013,4]
[346001017,1734618657973,-500.0,0.00023013,4]
[346001018,1734618657983,-500.0,0.00023013,4]
[346001019,1734618657995,-500.0,0.00023013,4]
[346001020,1734618658004,-500.0,0.00023013,4]
[346001021,1734618658014,-500.0,0.00023013,4]
[346001022,1734618658024,-500.0,0.00023013,4]
[346001023,1734618658034,-672.97,0.00023013,4]
[346001024,1734618658044,-500.0,0.00023013,4]
[346001025,1734618658057,-500.0,0.00023013,4]
[346001026,1734618658066,-163.27,0.00023013,4]
[346001027,1734618658076,-508.82,0.00023013,4]
[346001028,1734618658086,-658.64,0.00023013,4]
[346001029,1734618658109,-669.94,0.00023013,4]
[346001030,1734618658120,-500.0,0.00023013,4]
[346001031,1734618658132,-602.35579566,0.00023013,4]
[346001032,1734618658143,-500.0,0.00023013,4]
[346001033,1734618658154,-500.0,0.00023013,4]
[346001034,1734618658164,-500.0,0.00023013,4]
[346001035,1734618658174,-500.0,0.00023013,4]
[346001036,1734618658184,-500.0,0.00023013,4]
[346001037,1734618658196,-500.0,0.00023013,4]
[346001038,1734618658206,-1051.1,0.00023013,4]
[346001039,1734618658216,-500.0,0.00023013,4]
[346001040,1734618658226,-500.0,0.00023013,4]
[346001041,1734618658236,-643.56,0.00023013,4]
[346001042,1734618658246,-522.86116222,0.00023013,4]
[346001043,1734618658256,-500.0,0.00023013,4]
[346001044,1734618658266,-559.72,0.00023013,4]
[346001045,1734618658276,-500.0,0.00023013,4]
[346001046,1734618658286,-500.0,0.00023013,4]
[346001047,1734618658296,-500.0,0.00023013,4]
[346001048,1734618658307,-500.0,0.00023013,4]
[346001049,1734618658316,-500.0,0.00023013,4]
[346001050,1734618658325,-500.0,0.00023013,4]
[346001051,1734618658335,-500.0,0.00023013,4]
[346001052,1734618658351,-500.0,0.00023013,4]
[346001053,1734618658361,-500.0,0.00023013,4]
[346001054,1734618658371,-500.0,0.00023013,4]
[346001055,1734618658380,-500.0,0.00023013,4]
[346001056,1734618658390,-500.0,0.00023013,4]
[346001057,1734618658400,-539.96,0.00023013,4]
[346001058,1734618658410,-500.0,0.00023013,4]
[346001059,1734618658419,-545.38,0.00023013,4]
[346001060,1734618658429,-500.0,0.00023013,4]
[346001061,1734618658439,-500.0,0.00023013,4]
[346001062,1734618658449,-500.0,0.00023013,4]
[346001063,1734618658458,-457.46956902,0.00023013,4]
[346001064,1734618658469,-500.0,0.00023013,4]
[346001065,1734618658478,-500.0,0.00023013,4]
[346001066,1734618658488,-515.23,0.00023013,4]
[346001067,1734618658498,-500.0,0.00023013,4]
[346001068,1734618658507,-500.0,0.00023013,4]
[346001069,1734618658518,-581.44,0.00023013,4]
[346001070,1734618658528,-500.0,0.00023013,4]
[346001071,1734618658538,-500.0,0.00023013,4]
[346001072,1734618658548,-500.0,0.00023013,4]
[346001073,1734618658558,-500.0,0.00023013,4]
[346001074,1734618658567,-500.0,0.00023013,4]
[346001075,1734618658577,-500.0,0.00023013,4]
[346001076,1734618658588,-809.96,0.00023013,4]
[346001077,1734618658604,-982.21,0.00023013,4]
[346001078,1734618658614,-589.90459386,0.00023013,4]
[346001079,1734618658624,-500.0,0.00023013,4]
[346001080,1734618658634,-1225.91,0.00023013,4]
[346001081,1734618658644,-546.89,0.00023013,4]
[346001082,1734618658654,-500.0,0.00023013,4]
[346001083,1734618658663,-1862.27,0.00023013,4]
[346001084,1734618658673,-500.0,0.00023013,4]
[346001085,1734618658683,-500.0,0.00023013,4]
[346001086,1734618658693,-664.87,0.00023013,4]
[346001087,1734618658704,-500.0,0.00023013,4]
[346001088,1734618658714,-569.29,0.00023013,4]
[346001089,1734618658724,-1636.6,0.00023013,4]
[346001090,1734618658733,-500.0,0.00023013,4]
[346001091,1734618658743,-500.0,0.00023013,4]
[346001092,1734618658754,-1061.47,0.00023013,4]
[346001093,1734618658766,-3443.32,0.00023013,4]
[346001094,1734618658776,-500.0,0.00023013,4]
[346001095,1734618658787,-500.0,0.00023013,4]
[346001096,1734618658797,-500.0,0.00023013,4]
[346001097,1734618658808,-500.0,0.00023013,4]
[346001098,1734618658818,-500.0,0.00023013,4]
[346001099,1734618658828,-577.23,0.00023013,4]
[346001100,1734618658838,-510.18,0.00023013,4]
[346001101,1734618658852,-500.0,0.00023013,4]
[346001102,1734618658862,-580.25,0.00023013,4]
[346001103,1734618658872,-500.0,0.00023013,4]
[346001104,1734618658882,-500.0,0.00023013,4]
[346001105,1734618658893,-561.94,0.00023013,4]
[346001106,1734618658903,-500.0,0.00023013,4]
[346001107,1734618658913,-500.0,0.00023013,4]
[346001108,1734618658923,-1000.92,0.00023013,4]
[346001109,1734618658934,-1011.42,0.00023013,4]
[346001110,1734618658944,-500.0,0.00023013,4]
[346001111,1734618658954,-1160.85,0.00023013,4]
[346001112,1734618658965,-889.04,0.00023013,4]
[346001113,1734618658975,-500.0,0.00023013,4]
[346001114,1734618658986,-513.5,0.00023013,4]
[346001115,1734618658996,-1470.92,0.00023013,4]
[346001116,1734618659006,-1902.12,0.00023013,4]
[346001117,1734618659016,-190.26336612,0.00023013,4]
[346001118,1734618659026,-1529.62,0.00023013,4]
[346001119,1734618659036,-500.0,0.00023013,4]
[346001120,1734618659046,-500.0,0.00023013,4]
[346001121,1734618659058,-500.0,0.00023013,4]
[346001122,1734618659068,-500.0,0.00023013,4]
[346001123,1734618659078,-1078.29,0.00023013,4]
[346001124,1734618659088,-500.0,0.00023013,4]
[346001125,1734618659105,-545.41,0.00023013,4]
[346001126,1734618659114,-500.0,0.00023013,4]
[346001127,1734618659124,-1136.86,0.00023013,4]
[346001128,1734618659135,-1932.48,0.00023013,4]
[346001129,1734618659146,-743.49,0.00023013,4]
[346001130,1734618659155,-743.12,0.00023013,4]
[346001131,1734618659165,-553.43,0.00023013,4]
[346001132,1734618659175,-527.87,0.00023013,4]
[346001133,1734618659186,-5190.88,0.00023013,4]
[346001134,1734618659197,-500.0,0.00023013,4]
[346001135,1734618659207,-500.0,0.00023013,4]
[346001136,1734618659216,-500.0,0.00023013,4]
[346001137,1734618659226,-966.08,0.00023013,4]
[346001138,1734618659236,-500.0,0.00023013,4]
[346001139,1734618659246,-500.0,0.00023013,4]
[346001140,1734618659256,-548.36430088,0.00023013,4]
[346001141,1734618659385,-0.72549354,0.00023013,4]
[346001142,1734618659415,-254.53020558,0.00023013,4]
[346001143,1734618659424,-598.14,0.00023013,4]
[346001144,1734618659435,-716.0,0.00023013,4]
[346001145,1734618659444,-500.0,0.00023013,4]
[346001146,1734618659453,-947.99,0.00023013,4]
[346001147,1734618659463,-501.8,0.00023013,4]
[346001148,1734618659473,-866.06,0.00023013,4]
[346001149,1734618659483,-3302.89,0.00023013,4]
[346001150,1734618659492,-500.0,0.00023013,4]
[346001151,1734618659502,-500.0,0.00023013,4]
[346001152,1734618659512,-500.0,0.00023013,4]
[346001153,1734618659521,-415.49324903,0.00023013,4]
[346001154,1734618659531,-1228.92,0.00023013,4]
[346001155,1734618659541,-601.24,0.00023013,4]
[346001156,1734618659550,-639.20502913,0.00023013,4]
[346001157,1734618659560,-1679.88,0.00023013,4]
[346001158,1734618659570,-550.22,0.00023013,4]
[346001159,1734618659580,-500.0,0.00023013,4]
[346001160,1734618659594,-500.0,0.00023013,4]
[346001161,1734618659604,-500.0,0.00023013,4]
[346001162,1734618659614,-500.0,0.00023013,4]
[346001163,1734618659624,-500.0,0.00023013,4]
[346001164,1734618659633,-500.0,0.00023013,4]
[346001165,1734618659643,-500.0,0.00023013,4]
[346001166,1734618659653,-500.0,0.00023013,4]
[346001167,1734618659662,-843.25,0.00023013,4]
[346001168,1734618659672,-1465.52,0.00023013,4]
[346001169,1734618659681,-541.01,0.00023013,4]
[346001170,1734618659691,-780.36,0.00023013,4]
[346001171,1734618659700,-500.0,0.00023013,4]
[346001172,1734618659709,-1897.2,0.00023013,4]
[346001173,1734618659719,-500.0,0.00023013,4]
[346001174,1734618659729,-500.0,0.00023013,4]
[346001175,1734618659738,-759.37,0.00023013,4]
[346001176,1734618659748,-1000.0,0.00023013,4]
[346001177,1734618659759,-533.17027868,0.00023013,4]
[346001178,1734618659768,-636.48,0.00023013,4]
[346001179,1734618659778,-1363.14,0.00023013,4]
[346001180,1734618659788,-500.0,0.00023013,4]
[346001181,1734618659798,-2028.95,0.00023013,4]
[346001182,1734618659809,-500.0,0.00023013,4]
[346001183,1734618659818,-835.94,0.00023013,4]
[346001184,1734618659829,-500.0,0.00023013,4]
[346001185,1734618659839,-500.0,0.00023013,4]
[346001186,1734618659850,-1527.78,0.00023013,4]
[346001187,1734618659860,-500.0,0.00023013,4]
[346001188,1734618659869,-2242.39,0.00023013,4]
[346001189,1734618659879,-500.0,0.00023013,4]
[346001190,1734618659889,-500.0,0.00023013,4]
[346001191,1734618659899,-500.0,0.00023013,4]
[346001192,1734618659909,-1000.0,0.00023013,2]
[346001193,1734618659918,-1423.1,0.00023013,4]
[346001194,1734618659928,-688.8,0.00023013,4]
[346001195,1734618659937,-1839.25,0.00023013,4]
[346001196,1734618659947,-500.0,0.00023013,4]
[346001197,1734618659956,-500.0,0.00023013,4]
[346001198,1734618659966,-500.0,0.00023013,4]
[346001199,1734618659975,-660.21,0.00023013,4]
[346001200,1734618659985,-537.53,0.00023013,4]
[346001201,1734618659994,-774.82,0.00023013,4]
[346001202,1734618660004,-500.0,0.00023013,4]
[346001203,1734618660014,-500.0,0.00023013,4]
[346001204,1734618660023,-500.0,0.00023013,4]
[346001205,1734618660033,-414.8373187,0.00023013,4]
[346001206,1734618660043,-500.0,0.00023013,4]
[346001207,1734618660054,-243.97974114,0.00023013,4]
[346001208,1734618660069,-3619.14,0.00023013,4]
[346001209,1734618660079,-500.0,0.00023013,4]
[346001210,1734618660090,-2277.39,0.00023013,4]
[346001211,1734618660102,-590.84,0.00023013,4]
[346001212,1734618660112,-636.83,0.00023013,4]
[346001213,1734618660122,-1506.26,0.00023013,4]
[346001214,1734618660132,-500.0,0.00023013,4]
[346001215,1734618660144,-500.0,0.00023013,4]
[346001216,1734618660154,-500.0,0.00023013,4]
[346001217,1734618660164,-1450.17,0.00023013,4]
[346001218,1734618660175,-500.0,0.00023013,4]
[346001219,1734618660185,-500.0,0.00023013,4]
[346001220,1734618660195,-1431.46,0.00023013,4]
[346001221,1734618660204,-622.14,0.00023013,4]
[346001222,1734618660214,-208.84,0.00023013,4]
[346001223,1734618660225,-615.79,0.00023013,4]
[346001224,1734618660235,-1118.32,0.00023013,4]
[346001225,1734618660244,-500.0,0.00023013,4]
[346001226,1734618660254,-1942.08,0.00023013,4]
[346001227,1734618660264,-640.79,0.00023013,4]
[346001228,1734618660274,-500.0,0.00023013,4]
[346001229,1734618660285,-188.48,0.00023013,4]
[346001230,1734618660294,-617.09,0.00023013,4]
[346001231,1734618660304,-500.0,0.00023013,4]
[346001232,1734618660314,-500.0,0.00023013,4]
[346001233,1734618660323,-383.54915803,0.00023013,4]
[346001234,1734618660334,-500.0,0.00023013,4]
[346001235,1734618660346,-3701.41,0.00023013,4]
[346001236,1734618660356,-500.0,0.00023013,2]
[346001237,1734618660366,-581.02,0.00023013,4]
[346001238,1734618660376,-500.0,0.00023013,4]
[346001239,1734618660386,-590.95,0.00023013,4]
[346001240,1734618660396,-500.0,0.00023013,4]
[346001241,1734618660406,-500.0,0.00023013,4]
[346001242,1734618660415,-500.0,0.00023013,4]
[346001243,1734618660425,-742.39,0.00023013,4]
[346001244,1734618660436,-500.0,0.00023013,4]
[346001245,1734618660446,-500.0,0.00023013,4]
[346001246,1734618660456,-873.82,0.00023013,4]
[346001247,1734618660466,-500.0,0.00023013,4]
[346001248,1734618660476,-500.56,0.00023013,4]
[346001249,1734618660486,-500.0,0.00023013,4]
[346001250,1734618660496,-500.0,0.00023013,4]
[346001251,1734618660506,-500.0,0.00023013,4]
[346001252,1734618660516,-500.0,0.00023013,4]
[346001253,1734618660525,-1548.53,0.00023013,4]
[346001254,1734618660535,-500.0,0.00023013,4]
[346001255,1734618660545,-727.98,0.00023013,4]
[346001256,1734618660555,-294.66337187,0.00023013,4]
[346001257,1734618660565,-500.0,0.00023013,4]
[346001258,1734618660729,-500.0,0.00023013,4]
[346001259,1734618660739,-500.0,0.00023013,4]
[346001260,1734618660748,-500.0,0.00023013,4]
[346001261,1734618660757,-885.56,0.00023013,4]
[346001262,1734618660767,-1819.6,0.00023013,4]
[346001263,1734618660776,-500.0,0.00023013,4]
[346001264,1734618660785,-990.87,0.00023013,4]
[346001265,1734618660795,-153.0,0.00023018,2]
[346001266,1734618660804,-153.0,0.00023018,2]
[346001267,1734618660813,-153.0,0.00023018,2]
[346001268,1734618660822,-153.0,0.00023018,2]
[346001269,1734618660831,-153.0,0.00023018,2]
[346001270,1734618660841,-153.0,0.00023018,2]
[346001271,1734618660851,-153.0,0.00023018,2]
[346001272,1734618660860,-153.0,0.00023018,2]
[346001273,1734618660868,-153.0,0.00023018,2]
[346001274,1734618660877,-153.0,0.00023018,2]
[346001275,1734618660886,-153.0,0.00023018,2]
[346001276,1734618660895,-153.0,0.00023018,2]
[346001277,1734618660904,-152.37927094,0.00023027,2]
[346001278,1734618660914,-150.0,0.00023052,4]
[346001279,1734618660923,-150.0,0.00023058,2]
[346001280,1734618660932,-150.0,0.00023068,2]
[346001281,1734618660942,-156.26,0.00023079,2]
[346001282,1734618660951,-150.0,0.00023082,2]
[346001283,1734618660961,-12949.00543649,0.00023087,2]
[346001284,1734618660971,-295.83578,0.00023088,7]
[346001285,1734618660981,-150.0,0.00023124,4]
[346001286,1734618660990,-150.0,0.00023174,4]
[346001287,1734618661000,-509.2,0.00023191,2]
[346001288,1734618661008,-150.0,0.00023196,4]
[346001289,1734618661018,-150.0,0.00023213,2]
[346001290,1734618661028,-20354.21782001,0.00023224,2]
[346001291,1734618661037,-150.0,0.00023268,4]
[346001292,1734618661047,-150.0,0.00023268,4]
[346001293,1734618661057,-150.0,0.00023268,4]
[346001294,1734618661068,-226.694226,0.00023287,4]
[346001295,1734618661078,-481.675102,0.00023287,4]
[346001296,1734618661087,-341.49105685,0.00023287,4]
[346001297,1734618661100,-500.0,0.00023287,4]
[346001298,1734618661109,-180.65306811,0.00023287,4]
[346001299,1734618661118,-317.02876252,0.00023287,4]
[346001300,1734618661128,-500.0,0.00023287,4]
[346001301,1734618661137,-500.0,0.00023287,4]
[346001302,1734618661147,-500.0,0.00023287,4]
[346001303,1734618661156,-500.0,0.00023287,4]
[346001304,1734618661165,-500.0,0.00023287,4]
[346001305,1734618661174,-172.71243885,0.00023287,4]
[346001306,1734618661183,-515.37170289,0.00023287,4]
[346001307,1734618661192,-500.0,0.00023287,4]
[346001308,1734618661201,-500.0,0.00023287,4]
[346001309,1734618661210,-500.0,0.00023287,4]
[346001310,1734618661220,-490.382884,0.00023287,4]
[346001311,1734618661229,-500.0,0.00023287,4]